fUSD/lending_fUSD_20250521
["ID","MTS","AMOUNT","RATE_DAILY","PERIOD"]
[361825874,1747823645852,-504.03,0.00037534,5]
[361825875,1747823645862,-420.0,0.00037534,5]
[361825876,1747823645872,-1155.6,0.00037534,5]
[361825877,1747823645883,-756.35,0.00037534,5]
[361825878,1747823645894,-2487.3,0.00037534,5]
[361825879,1747823645904,-829.63,0.00037534,5]
[361825880,1747823645914,-440.4,0.00037534,5]
[361825881,1747823645925,-512.22,0.00037534,5]
[361825882,1747823645936,-1069.06,0.00037534,5]
[361825883,1747823645946,-3548.27,0.00037534,5]
[361825884,1747823645957,-1131.24,0.00037534,5]
[361825885,1747823645967,-531.37,0.00037534,5]
[361825886,1747823645978,-438.38,0.00037534,5]
[361825887,1747823645988,-836.66,0.00037534,5]
[361825888,1747823645999,-1758.59,0.00037534,5]
[361825889,1747823646009,-2244.73,0.00037534,5]
[361825890,1747823646019,-706.99,0.00037534,5]
[361825891,1747823646030,-1303.3,0.00037534,5]
[361825892,1747823646039,-1671.68,0.00037534,5]
[361825893,1747823646049,-630.7,0.00037534,5]
[361825894,1747823646060,-1546.03,0.00037534,5]
[361825895,1747823646070,-1449.1,0.00037534,5]
[361825896,1747823646080,-1084.11,0.00037534,5]
[361825897,1747823646090,-796.16,0.00037534,5]
[361825898,1747823646100,-829.47,0.00037534,5]
[361825899,1747823646110,-560.22,0.00037534,5]
[361825900,1747823646120,-2061.87,0.00037534,5]
[361825901,1747823646130,-1759.24,0.00037534,5]
[361825902,1747823646140,-677.92,0.00037534,5]
[361825903,1747823646150,-420.0,0.00037534,5]
[361825904,1747823646160,-2008.9,0.00037534,5]
[361825905,1747823646171,-420.0,0.00037534,5]
[361825906,1747823646182,-603.25,0.00037534,5]
[361825907,1747823646193,-794.93,0.00037534,5]
[361825908,1747823646203,-3335.62,0.00037534,5]
[361825909,1747823646213,-462.11,0.00037534,5]
[361825910,1747823646224,-1384.78,0.00037534,5]
[361825911,1747823646235,-3088.45,0.00037534,5]
[361825912,1747823646245,-3415.98,0.00037534,5]
[361825913,1747823646255,-475.97,0.00037534,5]
[361825914,1747823646265,-420.0,0.00037534,5]
[361825915,1747823646276,-1441.04,0.00037534,5]
[361825916,1747823646287,-1360.17,0.00037534,5]
[361825917,1747823646297,-799.95,0.00037534,5]
[361825918,1747823646307,-1022.16,0.00037534,5]
[361825919,1747823646318,-2905.57,0.00037534,5]
[361825920,1747823646328,-2154.53,0.00037534,5]
[361825921,1747823646338,-1412.77,0.00037534,5]
[361825922,1747823646348,-1804.92,0.00037534,5]
[361825923,1747823646359,-931.82,0.00037534,5]
[361825924,1747823646369,-3820.81,0.00037534,5]
[361825925,1747823646380,-446.52,0.00037534,5]
[361825926,1747823646392,-3379.22,0.00037534,5]
[361825927,1747823646403,-552.29,0.00037534,5]
[361825928,1747823646413,-2204.62,0.00037534,5]
[361825929,1747823646424,-739.98,0.00037534,5]
[361825930,1747823646435,-1686.16,0.00037534,5]
[361825931,1747823646445,-638.15,0.00037534,5]
[361825932,1747823646456,-2851.0,0.00037534,5]
[361825933,1747823646467,-420.0,0.00037534,5]
[361825934,1747823646478,-1365.61,0.00037534,5]
[361825935,1747823646489,-669.03,0.00037534,5]
[361825936,1747823646500,-641.93,0.00037534,5]
[361825937,1747823646512,-1513.514558,0.00037534,5]
[361825938,1747823646523,-1056.24,0.00037534,5]
[361825939,1747823646534,-605.2,0.00037534,5]
[361825940,1747823646544,-3414.72,0.00037534,5]
[361825941,1747823646554,-456.44,0.00037534,5]
[361825942,1747823646564,-2738.58,0.00037534,5]
[361825943,1747823646575,-626.72,0.00037534,5]
[361825944,1747823646585,-1961.22,0.00037534,5]
[361825945,1747823646594,-4019.16,0.00037534,5]
[361825946,1747823646603,-501.19,0.00037534,5]
[361825947,1747823646613,-437.02,0.00037534,5]
[361825948,1747823646624,-3829.73,0.00037534,5]
[361825949,1747823646634,-1171.35,0.00037534,5]
[361825950,1747823646644,-1602.68,0.00037534,5]
[361825951,1747823646655,-1195.86,0.00037534,5]
[361825952,1747823646666,-1595.56,0.00037534,5]
[361825953,1747823646675,-1403.63,0.00037534,5]
[361825954,1747823646686,-420.0,0.00037534,5]
[361825955,1747823646696,-1620.22,0.00037534,5]
[361825956,1747823646706,-2127.07,0.00037534,5]
[361825957,1747823646718,-975.42,0.00037534,5]
[361825958,1747823646729,-663.27,0.00037534,5]
[361825959,1747823646739,-1651.18,0.00037534,5]
[361825960,1747823646750,-4718.07,0.00037534,5]
[361825961,1747823646761,-560.95,0.00037534,5]
[361825962,1747823646772,-701.41,0.00037534,5]
[361825963,1747823646782,-420.0,0.00037534,5]
[361825964,1747823646793,-708.42,0.00037534,5]
[361825965,1747823646803,-420.0,0.00037534,5]
[361825966,1747823646815,-1131.94,0.00037534,5]
[361825967,1747823646825,-3071.77,0.00037534,5]
[361825968,1747823646836,-1890.69,0.00037534,5]
[361825969,1747823646846,-2588.8,0.00037534,5]
[361825970,1747823646857,-3358.3,0.00037534,5]
[361825971,1747823646868,-950.44,0.00037534,5]
[361825972,1747823646878,-1081.97,0.00037534,5]
[361825973,1747823646889,-447.09,0.00037534,5]
[361825974,1747823646900,-1061.79,0.00037534,5]
[361825975,1747823646910,-3165.26,0.00037534,5]
[361825976,1747823646921,-1578.73,0.00037534,5]
[361825977,1747823646931,-420.0,0.00037534,5]
[361825978,1747823646942,-437.54,0.00037534,5]
[361825979,1747823646953,-801.31,0.00037534,5]
[361825980,1747823646965,-1117.87,0.00037534,5]
[361825981,1747823646976,-590.41,0.00037534,5]
[361825982,1747823646986,-646.24,0.00037534,5]
[361825983,1747823646997,-469.33,0.00037534,5]
[361825984,1747823647008,-1582.05,0.00037534,5]
[361825985,1747823647018,-944.65,0.00037534,5]
[361825986,1747823647029,-1388.27,0.00037534,5]
[361825987,1747823647039,-817.62,0.00037534,5]
[361825988,1747823647050,-1313.42,0.00037534,5]
[361825989,1747823647060,-2499.18,0.00037534,5]
[361825990,1747823647071,-591.99,0.00037534,5]
[361825991,1747823647082,-2712.821305,0.00037534,5]
[361825992,1747823647093,-2676.06,0.00037534,5]
[361825993,1747823647103,-536.3413509,0.00037534,5]
[361825994,1747823647114,-1630.17,0.00037534,5]
[361825995,1747823647124,-2046.62,0.00037534,5]
[361825996,1747823647135,-707.44,0.00037534,5]
[361825997,1747823647145,-420.0,0.00037534,5]
[361825998,1747823647156,-524.92,0.00037534,5]
[361825999,1747823647169,-844.05,0.00037534,5]
[361826000,1747823647178,-2122.24,0.00037534,5]
[361826001,1747823647188,-603.94,0.00037534,5]
[361826002,1747823647199,-5021.23,0.00037534,5]
[361826003,1747823647209,-1529.49,0.00037534,5]
[361826004,1747823647219,-1250.7,0.00037534,5]
[361826005,1747823647234,-420.0,0.00037534,5]
[361826006,1747823647245,-1682.48,0.00037534,5]
[361826007,1747823647255,-1386.81,0.00037534,5]
[361826008,1747823647266,-730.49,0.00037534,5]
[361826009,1747823647276,-447.9,0.00037534,5]
[361826010,1747823647285,-1324.88,0.00037534,5]
[361826011,1747823647295,-2229.66,0.00037534,5]
[361826012,1747823647306,-472.1,0.00037534,5]
[361826013,1747823647318,-434.93,0.00037534,5]
[361826014,1747823647328,-1282.33,0.00037534,5]
[361826015,1747823647339,-444.34,0.00037534,5]
[361826016,1747823647353,-2643.47,0.00037534,5]
[361826017,1747823647364,-1343.09,0.00037534,5]
[361826018,1747823647375,-600.65,0.00037534,5]
[361826019,1747823647386,-1076.93,0.00037534,5]
[361826020,1747823647401,-1416.84,0.00037534,5]
[361826021,1747823647411,-1332.5,0.00037534,5]
[361826022,1747823647423,-682.19,0.00037534,5]
[361826023,1747823647434,-438.34,0.00037534,5]
[361826024,1747823647445,-1392.97,0.00037534,5]
[361826025,1747823647455,-632.83,0.00037534,5]
[361826026,1747823647466,-1000.0,0.00037534,30]
[361826027,1747823647480,-713.78,0.00037534,5]
[361826028,1747823647491,-2568.63,0.00037534,5]
[361826029,1747823647502,-791.4,0.00037534,5]
[361826030,1747823647513,-1222.57,0.00037534,5]
[361826031,1747823647523,-420.0,0.00037534,5]
[361826032,1747823647533,-1185.11,0.00037534,5]
[361826033,1747823647543,-3400.95,0.00037534,5]
[361826034,1747823647553,-618.99,0.00037534,5]
[361826035,1747823647563,-559.3,0.00037534,5]
[361826036,1747823647573,-2592.87,0.00037534,5]
[361826037,1747823647583,-729.48,0.00037534,5]
[361826038,1747823647593,-1036.77,0.00037534,5]
[361826039,1747823647604,-912.69,0.00037534,5]
[361826040,1747823647614,-2077.17,0.00037534,5]
[361826041,1747823647624,-474.23,0.00037534,5]
[361826042,1747823647634,-633.02,0.00037534,5]
[361826043,1747823647644,-2143.32,0.00037534,5]
[361826044,1747823647654,-2433.64,0.00037534,5]
[361826045,1747823647665,-2156.45,0.00037534,5]
[361826046,1747823647676,-680.33,0.00037534,5]
[361826047,1747823647686,-1587.63,0.00037534,5]
[361826048,1747823647697,-3338.68,0.00037534,5]
[361826049,1747823647706,-2132.67,0.00037534,5]
[361826050,1747823647718,-539.66,0.00037534,5]
[361826051,1747823647728,-1108.21,0.00037534,5]
[361826052,1747823647924,-1448.56,0.00037534,5]
[361826053,1747823647934,-1231.09,0.00037534,5]
[361826054,1747823647943,-1449.81,0.00037534,5]
[361826055,1747823647953,-420.0,0.00037534,5]
[361826056,1747823647963,-2507.82,0.00037534,5]
[361826057,1747823647972,-2269.59,0.00037534,5]
[361826058,1747823647982,-3289.43,0.00037534,5]
[361826059,1747823647993,-461.55,0.00037534,5]
[361826060,1747823648003,-1017.25,0.00037534,5]
[361826061,1747823648013,-1196.46,0.00037534,5]
[361826062,1747823648022,-420.0,0.00037534,5]
[361826063,1747823648031,-1902.38,0.00037534,5]
[361826064,1747823648041,-4528.11,0.00037534,5]
[361826065,1747823648052,-2709.01,0.00037534,5]
[361826066,1747823648062,-437.58,0.00037534,5]
[361826067,1747823648072,-934.68,0.00037534,5]
[361826068,1747823648082,-644.31,0.00037534,5]
[361826069,1747823648093,-3000.52,0.00037534,5]
[361826070,1747823648103,-2558.61,0.00037534,5]
[361826071,1747823648114,-919.21,0.00037534,5]
[361826072,1747823648123,-1016.83,0.00037534,5]
[361826073,1747823648132,-3800.75,0.00037534,5]
[361826074,1747823648143,-1283.86,0.00037534,5]
[361826075,1747823648154,-5012.54,0.00037534,5]
[361826076,1747823648165,-4257.36,0.00037534,5]
[361826077,1747823648176,-420.0,0.00037534,5]
[361826078,1747823648187,-2661.46,0.00037534,5]
[361826079,1747823648198,-290.53146479,0.00037534,5]
[361826080,1747823648209,-7175.57,0.00037534,5]
[361826081,1747823648219,-1626.84,0.00037534,5]
[361826082,1747823648228,-7478.95,0.00037534,5]
[361826083,1747823648237,-1297.42,0.00037534,5]
[361826084,1747823648247,-1050.66,0.00037534,5]
[361826085,1747823648256,-459.54,0.00037534,5]
[361826086,1747823648266,-3186.22,0.00037534,5]
[361826087,1747823648277,-1603.59,0.00037534,5]
[361826088,1747823648286,-1706.72,0.00037534,5]
[361826089,1747823648297,-1118.07,0.00037534,5]
[361826090,1747823648307,-1819.17,0.00037534,5]
[361826091,1747823648317,-477.62,0.00037534,5]
[361826092,1747823648327,-500.47,0.00037534,5]
[361826093,1747823648338,-3456.53,0.00037534,5]
[361826094,1747823648348,-1245.18,0.00037534,5]
[361826095,1747823648357,-864.67,0.00037534,5]
[361826096,1747823648367,-485.82,0.00037534,5]
[361826097,1747823648377,-1044.28,0.00037534,5]
[361826098,1747823648391,-483.53,0.00037534,5]
[361826099,1747823648401,-2279.99,0.00037534,5]
[361826100,1747823648411,-1093.42,0.00037534,5]
[361826101,1747823648421,-773.61,0.00037534,5]
[361826102,1747823648431,-1587.6,0.00037534,5]
[361826103,1747823648440,-1620.66082141,0.00037534,5]
[361826104,1747823648450,-3023.35,0.00037534,5]
[361826105,1747823648460,-2681.61,0.00037534,5]
[361826106,1747823648470,-3921.51,0.00037534,5]
[361826107,1747823648480,-774.74,0.00037534,5]
[361826108,1747823648490,-11832.32,0.00037534,5]
[361826109,1747823648499,-1140.49,0.00037534,5]
[361826110,1747823648510,-716.85,0.00037534,5]
[361826111,1747823648519,-1451.14,0.00037534,5]
[361826112,1747823648530,-1980.16,0.00037534,5]
[361826113,1747823648540,-4169.63,0.00037534,5]
[361826114,1747823648551,-614.3,0.00037534,5]
[361826115,1747823648561,-478.74,0.00037534,5]
[361826116,1747823648572,-1064.83,0.00037534,5]
[361826117,1747823648582,-1031.8,0.00037534,5]
[361826118,1747823648592,-2328.19,0.00037534,5]
[361826119,1747823648601,-2178.09,0.00037534,5]
[361826120,1747823648613,-595.22,0.00037534,5]
[361826121,1747823648623,-12779.36,0.00037534,5]
[361826122,1747823648632,-3199.69,0.00037534,5]
[361826123,1747823648642,-464.93,0.00037534,5]
[361826124,1747823648652,-3624.48,0.00037534,5]
[361826125,1747823648661,-1385.93,0.00037534,5]
[361826126,1747823648671,-1592.89,0.00037534,5]
[361826127,1747823648680,-368.38472437,0.00037534,5]
[361826128,1747823648690,-3239.25,0.00037534,5]
[361826129,1747823648701,-4626.37,0.00037534,5]
[361826130,1747823648711,-1377.38,0.00037534,5]
[361826131,1747823648721,-613.45,0.00037534,5]
[361826132,1747823648730,-2100.46,0.00037534,5]
[361826133,1747823648741,-232873.01,0.00037534,5]
[361826134,1747823648751,-2870.6,0.00037534,5]
[361826135,1747823648763,-420.0,0.00037534,5]
[361826136,1747823648773,-544.44,0.00037534,5]
[361826137,1747823648783,-2582.79,0.00037534,5]
[361826138,1747823648793,-1455.85,0.00037534,5]
[361826139,1747823648803,-3817.8,0.00037534,5]
[361826140,1747823648813,-814.19,0.00037534,5]
[361826141,1747823648823,-1001.8,0.00037534,5]
[361826142,1747823648832,-24741.12,0.00037534,5]
[361826143,1747823648843,-746.18,0.00037534,5]
[361826144,1747823648854,-1332.61,0.00037534,5]
[361826145,1747823648864,-1140.2,0.00037534,5]
[361826146,1747823648874,-847.4,0.00037534,5]
[361826147,1747823648884,-6653.58,0.00037534,5]
[361826148,1747823648895,-2208.36,0.00037534,5]
[361826149,1747823648904,-3466.92,0.00037534,5]
[361826150,1747823648914,-756.27,0.00037534,5]
[361826151,1747823648925,-2780.98,0.00037534,5]
[361826152,1747823648935,-3727.2,0.00037534,5]
[361826153,1747823648945,-43430.9,0.00037534,5]
[361826154,1747823648954,-4377.12,0.00037534,5]
[361826155,1747823648964,-662.42,0.00037534,5]
[361826156,1747823648974,-1355.36,0.00037534,5]
[361826157,1747823648983,-3823.68,0.00037534,5]
[361826158,1747823648993,-1646.2,0.00037534,5]
[361826159,1747823649003,-1929.18,0.00037534,5]
[361826160,1747823649013,-692.1,0.00037534,5]
[361826161,1747823649022,-27430.46,0.00037534,5]
[361826162,1747823649032,-694.13,0.00037534,5]
[361826163,1747823649042,-1375.19,0.00037534,5]
[361826164,1747823649051,-420.0,0.00037534,5]
[361826165,1747823649061,-1035.87,0.00037534,5]
[361826166,1747823649071,-8392.23,0.00037534,5]
[361826167,1747823649081,-3873.45,0.00037534,5]
[361826168,1747823649090,-2620.97,0.00037534,5]
[361826169,1747823649098,-831.34,0.00037534,5]
[361826170,1747823649108,-683.8,0.00037534,5]
[361826171,1747823649117,-467.45426277,0.00037534,5]
[361826172,1747823649127,-2236.59,0.00037534,5]
[361826173,1747823649136,-862.9,0.00037534,5]
[361826174,1747823649146,-648.18,0.00037534,5]
[361826175,1747823649155,-333.94,0.00037534,5]
[361826176,1747823649165,-2055.72,0.00037534,5]
[361826177,1747823649175,-2431.99,0.00037534,5]
[361826178,1747823649184,-30819.65,0.00037534,5]
[361826179,1747823649194,-426.36,0.00037534,5]
[361826180,1747823649204,-3529.5,0.00037534,5]
[361826181,1747823649213,-420.0,0.00037534,5]
[361826182,1747823649222,-507.94,0.00037534,5]
[361826183,1747823649232,-7158.91,0.00037534,5]
[361826184,1747823649242,-1372.96,0.00037534,5]
[361826185,1747823649251,-1395.97,0.00037534,5]
[361826186,1747823649261,-11263.62,0.00037534,5]
[361826187,1747823649271,-11955.57,0.00037534,5]
[361826188,1747823649281,-10218.82,0.00037534,5]
[361826189,1747823649290,-903.34,0.00037534,5]
[361826190,1747823649300,-4237.43,0.00037534,5]
[361826191,1747823649310,-1156.02,0.00037534,5]
[361826192,1747823649321,-1250.1,0.00037534,5]
[361826193,1747823649331,-1940.56,0.00037534,5]
[361826194,1747823649342,-1535.0,0.00037534,5]
[361826195,1747823649352,-2611.65,0.00037534,5]
[361826196,1747823649361,-2088.87,0.00037534,5]
[361826197,1747823649370,-604.9,0.00037534,5]
[361826198,1747823649379,-436.47,0.00037534,5]
[361826199,1747823649389,-4967.59,0.00037534,5]
[361826200,1747823649401,-512.59,0.00037534,5]
[361826201,1747823649411,-3994.4,0.00037534,5]
[361826202,1747823649421,-997.3,0.00037534,5]
[361826203,1747823649430,-420.0,0.00037534,5]
[361826204,1747823649442,-3960.15,0.00037534,5]
[361826205,1747823649452,-2461.55,0.00037534,5]
[361826206,1747823649462,-2650.09,0.00037534,5]
[361826207,1747823649474,-1029.17,0.00037534,5]
[361826208,1747823649484,-2763.51,0.00037534,5]
[361826209,1747823649494,-655.48,0.00037534,5]
[361826210,1747823649505,-6358.26,0.00037534,5]
[361826211,1747823649515,-3823.46,0.00037534,5]
[361826212,1747823649524,-420.0,0.00037534,5]
[361826213,1747823649534,-420.0,0.00037534,5]
[361826214,1747823649543,-2138.94,0.00037534,5]
[361826215,1747823649553,-3514.65,0.00037534,5]
[361826216,1747823649562,-578.47,0.00037534,5]
[361826217,1747823649571,-420.0,0.00037534,5]
[361826218,1747823649581,-1778.66,0.00037534,5]
[361826219,1747823649591,-7467.95,0.00037534,5]
[361826220,1747823649600,-4923.96,0.00037534,5]
[361826221,1747823649610,-420.87,0.00037534,5]
[361826222,1747823649619,-420.0,0.00037534,5]
[361826223,1747823649629,-1388.95,0.00037534,5]
[361826224,1747823649638,-1642.25,0.00037534,5]
[361826225,1747823649649,-15894.82,0.00037534,5]
[361826226,1747823649658,-7928.56,0.00037534,5]
[361826227,1747823649668,-535.54,0.00037534,5]
[361826228,1747823649677,-3648.84,0.00037534,5]
[361826229,1747823649687,-458.86145815,0.00037534,5]
[361826230,1747823649698,-18415.06,0.00037534,5]
[361826231,1747823649707,-420.0,0.00037534,5]
[361826232,1747823649717,-584.64,0.00037534,5]
[361826233,1747823649727,-1096.3,0.00037534,5]
[361826234,1747823649738,-2111.71,0.00037534,5]
[361826235,1747823649748,-2534.37,0.00037534,5]
[361826236,1747823649758,-2727.38,0.00037534,5]
[361826237,1747823649767,-4064.18,0.00037534,5]
[361826238,1747823649776,-1605.11,0.00037534,5]
[361826239,1747823649785,-481.82,0.00037534,5]
[361826240,1747823649795,-583.63,0.00037534,5]
[361826241,1747823649804,-211.9903051,0.00037534,5]
[361826242,1747823649813,-2791.01,0.00037534,5]
[361826243,1747823649823,-3277.38,0.00037534,5]
[361826244,1747823649832,-1946.19,0.00037534,5]
[361826245,1747823649842,-4162.95,0.00037534,5]
[361826246,1747823649852,-486.64,0.00037534,5]
[361826247,1747823649862,-1793.09,0.00037534,5]
[361826248,1747823649871,-2365.3,0.00037534,5]
[361826249,1747823649881,-5030.39,0.00037534,5]
[361826250,1747823649890,-1065.78,0.00037534,5]
[361826251,1747823649903,-5351.26,0.00037534,5]
[361826252,1747823649912,-8618.58,0.00037534,5]
[361826253,1747823649922,-420.0,0.00037534,5]
[361826254,1747823649931,-1488.03,0.00037534,5]
[361826255,1747823649941,-853.5,0.00037534,5]
[361826256,1747823649950,-4366.01,0.00037534,5]
[361826257,1747823649960,-5387.66,0.00037534,5]
[361826258,1747823649970,-1284.33,0.00037534,5]
[361826259,1747823649979,-3564.21,0.00037534,5]
[361826260,1747823649989,-643.95,0.00037534,5]
[361826261,1747823649999,-11304.41,0.00037534,5]
[361826262,1747823650008,-751.7,0.00037534,5]
[361826263,1747823650018,-873.4,0.00037534,5]
[361826264,1747823650027,-1096.95,0.00037534,5]
[361826265,1747823650037,-441.74,0.00037534,5]
[361826266,1747823650046,-781.82,0.00037534,5]
[361826267,1747823650056,-420.0,0.00037534,5]
[361826268,1747823650066,-871.43,0.00037534,5]
[361826269,1747823650075,-778.01,0.00037534,5]
[361826270,1747823650085,-3424.15,0.00037534,5]
[361826271,1747823650095,-6336.25,0.00037534,5]
[361826272,1747823650104,-420.0,0.00037534,5]
[361826273,1747823650114,-575.11,0.00037534,5]
[361826274,1747823650123,-469.12,0.00037534,5]
[361826275,1747823650132,-2778.38,0.00037534,5]
[361826276,1747823650142,-5264.38,0.00037534,5]
[361826277,1747823650151,-2282.35,0.00037534,5]
[361826278,1747823650161,-2508.06,0.00037534,5]
[361826279,1747823650171,-477.54,0.00037534,5]
[361826280,1747823650181,-420.0,0.00037534,5]
[361826281,1747823650191,-45711.39,0.00037534,5]
[361826282,1747823650200,-1438.01,0.00037534,5]
[361826283,1747823650209,-2227.33,0.00037534,5]
[361826284,1747823650219,-420.0,0.00037534,5]
[361826285,1747823650228,-2994.99,0.00037534,5]
[361826286,1747823650238,-492.73,0.00037534,5]
[361826287,1747823650247,-845.16,0.00037534,5]
[361826288,1747823650257,-2847.74,0.00037534,5]
[361826289,1747823650266,-7033.02,0.00037534,5]
[361826290,1747823650275,-20631.06,0.00037534,5]
[361826291,1747823650285,-1653.01,0.00037534,5]
[361826292,1747823650294,-440.6,0.00037534,5]
[361826293,1747823650304,-480.69,0.00037534,5]
[361826294,1747823650314,-908.75,0.00037534,5]
[361826295,1747823650323,-401.44033792,0.00037534,5]
[361826296,1747823650333,-1811.64,0.00037534,5]
[361826297,1747823650342,-1675.59,0.00037534,5]
[361826298,1747823650353,-1341.01,0.00037534,5]
[361826299,1747823650362,-1620.28,0.00037534,5]
[361826300,1747823650372,-2039.96,0.00037534,5]
[361826301,1747823650382,-659.87,0.00037534,5]
[361826302,1747823650392,-1650.39,0.00037534,5]
[361826303,1747823650403,-2331.07,0.00037534,5]
[361826304,1747823650412,-1130.47,0.00037534,5]
[361826305,1747823650423,-8529.77,0.00037534,5]
[361826306,1747823650434,-1170.52,0.00037534,5]
[361826307,1747823650443,-1019.14,0.00037534,5]
[361826308,1747823650453,-594.46,0.00037534,5]
[361826309,1747823650462,-420.0,0.00037534,5]
[361826310,1747823650473,-528.88,0.00037534,5]
[361826311,1747823650484,-420.0,0.00037534,5]
[361826312,1747823650493,-729.81,0.00037534,5]
[361826313,1747823650503,-6448.31,0.00037534,5]
[361826314,1747823650512,-157.265004,0.00037534,5]
[361826315,1747823650522,-1260.39,0.00037534,5]
[361826316,1747823650531,-4031.81,0.00037534,5]
[361826317,1747823650542,-15980.3,0.00037534,2]
[361826318,1747823650551,-569.82,0.00037534,5]
[361826319,1747823650562,-1991.55,0.00037534,5]
[361826320,1747823650571,-13852.49,0.00037534,5]
[361826321,1747823650580,-1826.19,0.00037534,5]
[361826322,1747823650590,-711.84,0.00037534,5]
[361826323,1747823650599,-932.88,0.00037534,5]
[361826324,1747823650609,-1316.77,0.00037534,5]
[361826325,1747823650618,-1559.3,0.00037534,5]
[361826326,1747823650627,-1672.61,0.00037534,5]
[361826327,1747823650637,-1828.91,0.00037534,5]
[361826328,1747823650647,-6643.48,0.00037534,5]
[361826329,1747823650657,-5987.12,0.00037534,5]
[361826330,1747823650666,-4970.74,0.00037534,5]
[361826331,1747823650679,-908.99,0.00037534,5]
[361826332,1747823650688,-1754.62,0.00037534,5]
[361826333,1747823650697,-636.17,0.00037534,5]
[361826334,1747823650706,-907.69,0.00037534,5]
[361826335,1747823650715,-434.27,0.00037534,5]
[361826336,1747823650726,-420.0,0.00037534,5]
[361826337,1747823650735,-14282.24,0.00037534,5]
[361826338,1747823650745,-2354.7,0.00037534,5]
[361826339,1747823650754,-2934.17,0.00037534,5]
[361826340,1747823650763,-420.0,0.00037534,5]
[361826341,1747823650773,-2098.09,0.00037534,5]
[361826342,1747823650782,-2370.12,0.00037534,5]
[361826343,1747823650791,-635.77,0.00037534,5]
[361826344,1747823650801,-1608.41,0.00037534,5]
[361826345,1747823650811,-2448.57,0.00037534,5]
[361826346,1747823650821,-565.39,0.00037534,5]
[361826347,1747823650830,-832.67,0.00037534,5]
[361826348,1747823650840,-1727.02,0.00037534,5]
[361826349,1747823650850,-2132.27,0.00037534,5]
[361826350,1747823650859,-1444.81,0.00037534,5]
[361826351,1747823650869,-674.57,0.00037534,5]
[361826352,1747823650879,-1244.04,0.00037534,5]
[361826353,1747823650889,-14461.5,0.00037534,5]
[361826354,1747823650899,-5215.67,0.00037534,5]
[361826355,1747823650908,-4167.33,0.00037534,5]
[361826356,1747823650918,-888.13,0.00037534,5]
[361826357,1747823650931,-207938.64,0.00037534,5]
[361826358,1747823650941,-548.09,0.00037534,5]
[361826359,1747823650951,-2319.06,0.00037534,5]
[361826360,1747823650960,-3257.11,0.00037534,5]
[361826361,1747823650971,-1507.21,0.00037534,5]
[361826362,1747823650980,-1493.55,0.00037534,5]
[361826363,1747823650989,-2557.88,0.00037534,5]
[361826364,1747823650999,-1088.44,0.00037534,5]
[361826365,1747823651010,-2873.2,0.00037534,5]
[361826366,1747823651020,-697.67,0.00037534,5]
[361826367,1747823651029,-5582.21,0.00037534,5]
[361826368,1747823651038,-480.01,0.00037534,5]
[361826369,1747823651048,-2282.96,0.00037534,5]
[361826370,1747823651057,-1657.0,0.00037534,5]
[361826371,1747823651067,-420.0,0.00037534,5]
[361826372,1747823651077,-799.92,0.00037534,5]
[361826373,1747823651087,-1063.9,0.00037534,5]